bitfinex/quotes_BTCUSD_20260221
["timestamp","ask_amount","ask_price","bid_price","bid_amount"]
[1771639358010,0.0735272,68003.0,68000.0,0.00022]
[1771639358377,0.07352545,68004.0,68000.0,0.00022]
[1771639360681,0.07372577,68005.0,68000.0,0.00022]
[1771639361409,0.07352515,68004.0,68000.0,0.00022]
[1771639362410,0.07352515,68004.0,68000.0,7.27e-05]
[1771639365808,0.07352652,68003.0,68000.0,7.27e-05]
[1771639366009,0.0735275,68002.0,68000.0,7.27e-05]
[1771639366251,0.07352833,68001.0,67997.0,0.00022]
[1771639366396,0.07352888,68001.0,67997.0,0.00022]
[1771639366572,0.07352968,68000.0,67997.0,0.00022]
[1771639366774,0.07352888,68001.0,67997.0,0.00022]
[1771639368213,0.07352942,68000.0,67997.0,0.00022]
[1771639368411,0.07352888,68001.0,67997.0,0.00022]
[1771639368587,0.07352888,68001.0,67997.0,7.271e-05]
[1771639369212,0.0735292,68002.0,67997.0,7.271e-05]
[1771639370209,0.07352877,68001.0,67997.0,7.271e-05]
[1771639370422,0.07352877,68001.0,67996.0,0.00014541]
[1771639370616,0.07352877,68001.0,67996.0,0.07367903]
[1771639372080,0.07352966,68000.0,67997.0,0.00022]
[1771639372280,0.07353023,68001.0,67997.0,0.00022]
[1771639372923,0.07352903,68002.0,67997.0,0.00022]
[1771639375381,0.07352903,68002.0,67997.0,0.07375258]
[1771639376081,0.07352805,68003.0,67997.0,0.07375258]
[1771639378150,0.07352805,68003.0,67997.0,0.07360529]
[1771639381825,0.0002,68005.0,67996.0,0.00014541]
[1771639382026,0.0002,68005.0,67993.0,0.00022]
[1771639382234,0.07353351,67997.0,67993.0,0.00022]
[1771639382408,0.07353384,67996.0,67993.0,0.00022]
[1771639382662,0.07353511,67995.0,67993.0,0.00022]
[1771639383202,0.04960822,67996.0,67993.0,0.00022]
[1771639384250,0.0735349,67995.0,67993.0,0.00022]
[1771639384685,0.04960822,67996.0,67993.0,0.00022]
[1771639385899,0.07353487,67995.0,67993.0,0.00022]
[1771639386313,0.04960822,67996.0,67993.0,0.00022]
[1771639387444,0.07353522,67995.0,67993.0,0.00022]
[1771639387648,0.07353522,67995.0,67992.0,0.0001228]
[1771639389653,0.04960822,67996.0,67992.0,0.0001228]
[1771639389913,0.07353439,67997.0,67992.0,0.0001228]
[1771639390367,0.07353236,67998.0,67992.0,0.07366045]
[1771639391593,0.07353236,67998.0,67992.0,0.07388045]
[1771639392179,0.07353236,67998.0,67993.0,0.0735369]
[1771639393727,0.07353236,67998.0,67992.0,0.07388045]
[1771639394045,0.07353236,67998.0,67993.0,0.07353684]
[1771639394255,0.07353084,67999.0,67994.0,0.07353531]
[1771639394901,0.07353084,67999.0,67993.0,0.07353684]
[1771639398968,0.07373084,67999.0,67993.0,0.07353684]
[1771639400684,0.07373084,67999.0,67994.0,0.07353562]
[1771639402849,0.0002,67999.0,67994.0,0.07353562]
[1771639406288,0.0002,67999.0,67994.0,0.16201151]
[1771639409093,0.0002,67999.0,67995.0,0.0735348]
[1771639414800,0.0002,67999.0,67995.0,0.16182108]
[1771639419757,0.0002,67999.0,67994.0,0.07353562]
[1771639422761,0.0002,67999.0,67995.0,0.08815318]
[1771639426539,0.0002,67999.0,67992.0,0.29449382]
[1771639426732,0.0002,67999.0,67980.0,0.00016]
[1771639426733,0.05616303,67998.0,67980.0,0.00016]
[1771639426938,0.02329953,67999.0,67980.0,0.00016]
[1771639426939,0.07354996,67981.0,67980.0,0.00016]
[1771639427092,0.04962276,67980.0,67978.0,0.0001228]
[1771639427699,0.07355212,67979.0,67978.0,0.0001228]
[1771639428225,0.07355212,67979.0,67978.0,0.00023989]
[1771639428665,0.07355366,67978.0,67975.0,0.04824927]
[1771639428837,0.05616303,67984.0,67971.0,0.0001228]
[1771639429073,0.0735597,67972.0,67971.0,0.00018608]
[1771639429250,0.07356078,67971.0,67970.0,0.00016]
[1771639432224,0.07356078,67971.0,67970.0,1e-08]
[1771639436050,0.07354455,67986.0,67970.0,1e-08]
[1771639436249,0.00011717,67986.0,67971.0,0.0688259]
[1771639436450,0.07355658,67975.0,67971.0,0.0688259]
[1771639436872,0.07355549,67976.0,67971.0,0.0688259]
[1771639437650,0.001,67975.0,67971.0,0.0688259]
[1771639437869,0.07355549,67976.0,67971.0,0.0688259]
[1771639438324,0.0002,67975.0,67971.0,0.0688259]
[1771639438592,0.07375685,67975.0,67971.0,0.0688259]
[1771639438753,0.0002,67975.0,67971.0,0.0688259]
[1771639442204,0.07354601,67985.0,67978.0,0.07355257]
[1771639442604,0.0001646,67987.0,67979.0,0.06872446]
[1771639442785,0.07354877,67983.0,67979.0,0.06872446]
[1771639443609,0.07354893,67982.0,67979.0,0.06872446]
[1771639444261,0.07354951,67982.0,67979.0,0.06872446]
[1771639444843,0.07354877,67983.0,67979.0,0.06872446]
[1771639445334,0.0002,67982.0,67979.0,0.06872446]
[1771639446241,0.07354563,67985.0,67979.0,0.15689543]
[1771639446659,0.07366213,67986.0,67979.0,0.15689543]
[1771639446849,0.07366213,67986.0,67980.0,0.1571824]
[1771639447424,0.07366213,67986.0,67980.0,0.08363172]
[1771639447425,0.00011717,67986.0,67980.0,0.08363172]
[1771639447624,0.00011717,67986.0,67982.0,0.08363172]
[1771639447982,0.00011717,67986.0,67982.0,0.15718052]
[1771639448601,0.07353954,67991.0,67984.0,0.15714226]
[1771639448792,0.07353942,67991.0,67985.0,0.07354455]
[1771639448995,0.07353942,67991.0,67986.0,0.08359627]
[1771639449397,0.07370025,67990.0,67986.0,0.08359627]
[1771639450486,0.07354672,67984.0,67979.0,0.05149894]
[1771639450688,0.07354672,67984.0,67979.0,0.05161611]
[1771639450886,0.07354751,67985.0,67979.0,0.12516817]
[1771639452499,0.07354751,67985.0,67980.0,0.12499168]
[1771639452835,0.07374639,67986.0,67980.0,0.12499168]
[1771639454457,0.0002,67986.0,67983.0,0.07354679]
[1771639454655,0.0002,67986.0,67984.0,0.05140275]
[1771639455082,0.0002,67986.0,67983.0,0.07354679]
[1771639456467,0.07374483,67986.0,67980.0,0.07355055]
[1771639458318,0.07374483,67986.0,67982.0,0.00022]
[1771639460227,0.07374483,67986.0,67980.0,0.07355055]
[1771639460428,0.07374483,67986.0,67979.0,0.0736675]
[1771639460648,0.07374483,67986.0,67980.0,0.07355066]
[1771639468334,0.07374483,67986.0,67981.0,0.07354989]
[1771639468510,0.0002,67986.0,67981.0,0.07354989]
[1771639468866,0.07353483,67995.0,67989.0,0.07354033]
[1771639469011,0.07353483,67995.0,67980.0,0.06373382]
[1771639469012,0.25030805,67994.0,67982.0,0.05126671]
[1771639469226,0.25030805,67994.0,67988.0,0.07354198]
[1771639469416,0.1767719,67994.0,67990.0,0.05126671]
[1771639469800,0.25030783,67994.0,67990.0,0.05126671]
[1771639470735,0.1767719,67994.0,67990.0,0.05126671]
[1771639470934,0.1767719,67994.0,67991.0,0.07353888]
[1771639470935,0.10443667,67994.0,67991.0,0.07353888]
[1771639471135,0.07353157,67998.0,67992.0,0.07170625]
[1771639471352,0.0735332,67997.0,67992.0,0.07170625]
[1771639474844,0.07338611,67997.0,67992.0,0.07170625]
[1771639476656,0.07338611,67997.0,67993.0,0.07177465]
[1771639478417,0.07358611,67997.0,67993.0,0.07177465]
[1771639482353,0.07353157,67998.0,67993.0,0.07177465]
[1771639485577,0.07373088,67999.0,67993.0,0.07177465]
[1771639485799,0.00016,68000.0,67998.0,0.07146036]
[1771639486335,0.00016,68000.0,67996.0,0.07353367]
[1771639486558,0.00016,68000.0,67996.0,0.14499403]
[1771639487225,0.00016,68000.0,67997.0,0.14493351]
[1771639487352,0.00016,68000.0,67998.0,0.07140103]
[1771639487903,0.00016,68000.0,67998.0,0.071254]
[1771639489595,0.00016,68000.0,67995.0,0.07353293]
[1771639489809,0.07369006,68000.0,67996.0,0.07124784]
[1771639492274,0.07353073,67999.0,67993.0,0.07353525]
[1771639494171,0.07373073,67999.0,67993.0,0.07353525]
[1771639494609,0.07353192,67998.0,67992.0,0.14492998]
[1771639495517,0.07353277,67997.0,67992.0,0.07375623]
[1771639495699,0.07353192,67998.0,67993.0,0.07104115]
[1771639499568,0.07353803,67993.0,67989.0,0.0001829]
[1771639500155,0.29413663,67996.0,67985.0,0.00022]
[1771639500331,0.07353944,67991.0,67985.0,0.07376529]
[1771639500652,0.07353944,67991.0,67985.0,0.00022]
[1771639500816,0.07354166,67989.0,67985.0,0.00022]
[1771639501017,0.07354307,67988.0,67985.0,0.00022]
[1771639501594,0.2941608,67991.0,67985.0,0.00022]
[1771639501595,0.07354205,67990.0,67985.0,0.00022]
[1771639501729,0.07353927,67991.0,67985.0,0.07376553]
[1771639502300,0.07353927,67991.0,67986.0,0.00022]
[1771639503782,0.07353927,67991.0,67986.0,0.07376451]
[1771639507770,0.07353978,67992.0,67986.0,0.07376451]
[1771639512381,0.07353352,67997.0,67991.0,0.07353881]
[1771639512582,0.07353401,67996.0,67990.0,0.07353995]
[1771639513140,0.07353756,67993.0,67987.0,0.14410643]
[1771639514851,0.07353772,67994.0,67988.0,0.07354182]
[1771639516349,0.0735359,67994.0,67986.0,0.00022]
[1771639516499,0.07353948,67991.0,67986.0,0.00022]
[1771639517249,0.07353823,67992.0,67986.0,0.07376405]
[1771639518777,0.07353823,67992.0,67986.0,0.07101699]
[1771639519803,0.07353945,67991.0,67985.0,0.00022]
[1771639520012,0.07353945,67991.0,67985.0,0.07376517]
[1771639520742,0.07353945,67991.0,67986.0,0.07354425]
[1771639520940,0.07353844,67992.0,67986.0,0.07354425]
[1771639521144,0.07353844,67992.0,67986.0,0.07339721]
[1771639522780,0.0735393,67991.0,67986.0,0.00022]
[1771639522993,0.07373832,67992.0,67986.0,0.07376405]
[1771639526111,0.07373832,67992.0,67987.0,0.07354346]
[1771639526514,0.0002,67992.0,67985.0,0.00022]
[1771639526791,0.0002,67992.0,67981.0,0.07354962]
[1771639526792,0.07354403,67987.0,67981.0,0.07354962]
[1771639526997,0.0496149,67987.0,67981.0,0.07354962]
[1771639528075,0.0496149,67987.0,67981.0,0.07354946]
[1771639528355,0.0496149,67987.0,67980.0,0.07393098]
[1771639528584,0.0496149,67987.0,67981.0,0.07354963]
[1771639529118,0.07354932,67982.0,67976.0,0.07367826]
[1771639529317,0.0736298,67982.0,67976.0,0.07367826]
[1771639530395,0.0736298,67982.0,67981.0,0.00022]
[1771639530738,0.0736298,67982.0,67976.0,0.0001233]
[1771639530739,0.07355092,67981.0,67976.0,0.0001233]
[1771639530904,0.07362961,67982.0,67976.0,0.0001233]
[1771639531112,0.07362961,67982.0,67976.0,0.07367852]
[1771639534076,0.07362961,67982.0,67976.0,0.07338448]
[1771639536531,8.048e-05,67982.0,67978.0,0.07355285]
[1771639536733,8.048e-05,67982.0,67977.0,0.14362142]
[1771639541420,8.048e-05,67982.0,67978.0,0.07355319]
[1771639544486,0.00028048,67982.0,67978.0,0.07355319]
[1771639546803,0.00028048,67982.0,67979.0,0.14338328]
[1771639547229,0.00028048,67982.0,67979.0,0.06983125]
[1771639548015,0.00028048,67982.0,67979.0,0.06968425]
[1771639548968,0.00028048,67982.0,67978.0,0.07355319]
[1771639549329,0.00028048,67982.0,67978.0,0.14326108]
[1771639549663,0.00028048,67982.0,67979.0,0.0735521]
[1771639549866,0.00028048,67982.0,67978.0,0.14326108]
[1771639552622,0.00028048,67982.0,67978.0,0.07355319]
[1771639553370,0.00028048,67982.0,67978.0,0.14320156]
[1771639555518,0.00028048,67982.0,67979.0,0.07355191]
[1771639557378,0.00028048,67982.0,67978.0,0.07355319]
[1771639558360,0.00028048,67982.0,67979.0,0.0735517]
[1771639559087,0.00028048,67982.0,67979.0,0.14306724]
[1771639559311,0.00016,67990.0,67976.0,0.00022]
[1771639559312,0.03916131,67986.0,67976.0,0.00022]
[1771639559510,0.00016,67990.0,67983.0,0.06951554]
[1771639559717,0.07354186,67989.0,67983.0,0.14306289]
[1771639560320,0.07354186,67989.0,67984.0,0.07354658]
[1771639560562,0.07354186,67989.0,67984.0,0.14301169]
[1771639560737,0.07370213,67990.0,67984.0,0.14301169]
[1771639562466,0.07354138,67989.0,67984.0,0.14301169]
[1771639563071,0.07354138,67989.0,67984.0,0.14286466]
[1771639563280,0.07354399,67987.0,67984.0,0.06946511]
[1771639568446,0.07354399,67987.0,67982.0,0.08281794]
[1771639568764,0.07354399,67987.0,67982.0,0.152112]
[1771639569202,0.07354399,67987.0,67983.0,0.06929406]
[1771639569724,0.07354365,67987.0,67983.0,0.06929406]
[1771639573410,0.07374365,67987.0,67983.0,0.06929406]
[1771639575629,0.07354458,67986.0,67983.0,0.06929406]
[1771639577655,0.07374365,67987.0,67983.0,0.06929406]
[1771639579043,0.0002,67987.0,67983.0,0.14284145]
[1771639580766,0.0002,67987.0,67983.0,0.14306145]
[1771639580973,0.00036,67990.0,67983.0,0.00022]
[1771639581149,0.00036,67990.0,67986.0,0.06905231]
[1771639582061,0.00036,67990.0,67986.0,0.14259684]
[1771639583655,0.00036,67990.0,67986.0,0.06905231]
[1771639589465,0.07390026,67990.0,67986.0,0.06905231]
[1771639590846,0.07390026,67990.0,67984.0,0.07354491]
[1771639591048,0.07354272,67988.0,67983.0,0.0828385]
[1771639591248,0.07354365,67987.0,67983.0,0.0828385]
[1771639592397,0.07354273,67988.0,67983.0,0.0828385]
[1771639592827,0.07354273,67988.0,67984.0,0.08260214]
[1771639593367,0.07354273,67988.0,67985.0,0.08260214]
[1771639594033,0.07354404,67987.0,67985.0,0.08260214]
[1771639595753,0.07354273,67988.0,67985.0,0.08260214]
[1771639595950,0.07354367,67987.0,67983.0,0.00022]
[1771639596454,0.07354367,67987.0,67983.0,0.08281189]
[1771639597223,0.07386493,67988.0,67983.0,0.08281189]
[1771639597648,0.07386493,67988.0,67984.0,0.08257241]
[1771639598154,0.07374307,67989.0,67985.0,0.08257241]
[1771639598302,0.07354293,67988.0,67985.0,0.08257241]
[1771639598710,0.07353209,67998.0,67993.0,0.08261123]
[1771639598917,0.00036,68000.0,67993.0,0.08261123]
[1771639599147,0.07353185,67998.0,67993.0,0.08261123]
[1771639600120,0.07381294,67999.0,67993.0,0.08261123]
[1771639602801,0.00028046,67999.0,67995.0,0.09116423]
[1771639603053,0.0002,68005.0,67999.0,0.07352961]
[1771639603265,0.0002,68005.0,68000.0,0.07352911]
[1771639603589,0.0002,68005.0,68001.0,0.09116423]
[1771639603975,0.07372415,68005.0,68001.0,0.09116423]
[1771639604768,0.0002,68005.0,68001.0,0.09116423]
[1771639605890,0.07352013,68009.0,68003.0,0.07352608]
[1771639606085,0.07352013,68009.0,68004.0,0.09116423]
[1771639606309,0.29417908,68015.0,68000.0,0.2941171]
[1771639606310,0.000123,68015.0,68001.0,0.09116423]
[1771639606502,0.29403018,68021.0,68000.0,0.07502274]
[1771639606503,0.07350169,68026.0,68013.0,0.09116423]
[1771639606672,0.00023218,68022.0,68018.0,0.07350899]
[1771639606880,0.00023218,68022.0,68019.0,0.09116423]
[1771639607324,0.00023218,68022.0,68020.0,0.07350739]
[1771639607529,0.75440448,68040.0,68023.0,0.09116423]
[1771639607530,0.07365788,68030.0,68023.0,0.09116423]
[1771639607678,0.07349844,68029.0,68024.0,0.09116423]
[1771639608325,0.07349933,68028.0,68024.0,0.09116423]
[1771639608492,0.0650007,68028.0,68023.0,0.09116423]
[1771639609303,0.06774869,68029.0,68023.0,0.09116423]
[1771639609708,0.06774869,68029.0,68024.0,0.09116423]
[1771639610643,0.07349959,68028.0,68024.0,0.09116423]
[1771639614346,0.07350036,68027.0,68024.0,0.09116423]
[1771639614551,0.07349959,68028.0,68024.0,0.09116423]
[1771639616983,0.07350043,68027.0,68024.0,0.09116423]
[1771639618207,0.07349959,68028.0,68024.0,0.09116423]
[1771639618578,0.07350031,68027.0,68024.0,0.09116423]
[1771639620322,0.07350203,68026.0,68024.0,0.09116423]
[1771639620676,0.07350238,68025.0,68024.0,0.09116423]
[1771639621430,0.07350352,68024.0,68019.0,0.16634093]
[1771639621586,0.07350238,68025.0,68020.0,0.04558212]
[1771639622030,0.07350135,68026.0,68020.0,0.04558212]
[1771639622031,0.07350135,68026.0,68021.0,0.04558212]
[1771639622946,0.07350249,68025.0,68021.0,0.02736142]
[1771639623300,0.07350377,68024.0,68021.0,0.02736142]
[1771639626001,0.07350478,68023.0,68021.0,0.02736142]
[1771639628206,0.07350377,68024.0,68021.0,0.02736142]
[1771639628791,0.07350377,68024.0,68021.0,0.02758142]
[1771639631805,0.07350415,68025.0,68021.0,0.02758142]
[1771639633371,0.07350351,68024.0,68021.0,0.02758142]
[1771639636360,0.07350351,68024.0,68021.0,0.00022]
[1771639636881,0.07350351,68024.0,68019.0,0.07350869]
[1771639637044,0.1814434,68024.0,68019.0,0.07350869]
[1771639638914,0.29402172,68023.0,68014.0,0.00022]
[1771639639187,0.0002,68025.0,68014.0,0.00010918]
[1771639639188,0.07351103,68017.0,68014.0,0.00010918]
[1771639639358,0.07351319,68016.0,68009.0,0.07351881]
[1771639639557,0.0735134,68015.0,68009.0,0.07351903]
[1771639639765,0.07351319,68016.0,68010.0,0.07351838]
[1771639639969,0.07351272,68017.0,68011.0,0.07351745]
[1771639640327,0.07351272,68017.0,68010.0,0.07351838]
[1771639640532,0.0735136,68015.0,68009.0,0.07351929]
[1771639640731,0.07351241,68016.0,68008.0,0.07352076]
[1771639640938,0.07351241,68016.0,68010.0,0.07351783]
[1771639642376,0.07351282,68017.0,68011.0,0.0737373]
[1771639645298,0.07351282,68017.0,68012.0,0.07351641]
[1771639645625,0.29419218,68020.0,68012.0,0.07351466]
[1771639645626,0.07350919,68019.0,68012.0,0.07351466]
[1771639645775,0.07350998,68018.0,68012.0,0.07351466]
[1771639646191,0.07362632,68019.0,68013.0,0.07351521]
[1771639646809,0.07362631,68019.0,68013.0,0.07351521]
[1771639647525,0.07366952,68020.0,68012.0,0.03647177]
[1771639647526,0.00016,68020.0,68012.0,0.03647177]
[1771639647695,0.00016,68020.0,68012.0,0.0365889]
[1771639647896,0.00016,68020.0,68017.0,0.07351085]
[1771639650315,0.00036,68020.0,68017.0,0.07351085]
[1771639653905,0.00036,68020.0,68016.0,0.07351202]
[1771639654766,0.07386816,68020.0,68014.0,0.07351383]
[1771639655925,0.07350922,68019.0,68013.0,0.07351373]
[1771639656821,0.07386816,68020.0,68014.0,0.07351395]
[1771639659888,0.07386816,68020.0,68015.0,0.07351316]
[1771639660693,0.07350914,68019.0,68014.0,0.07351395]
[1771639660908,0.07351236,68016.0,68003.0,0.03647177]
[1771639661119,0.07351236,68016.0,68007.0,0.29457006]
[1771639661530,0.07351236,68016.0,68010.0,0.07351843]
[1771639662170,0.07351322,68015.0,68009.0,0.07373771]
[1771639662378,0.07351236,68016.0,68010.0,0.07351826]
[1771639663579,0.07351236,68016.0,68011.0,0.07351744]
[1771639663991,0.29403598,68019.0,68009.0,0.00022]
[1771639663992,0.07350931,68019.0,68009.0,0.00022]
[1771639664210,0.07350931,68019.0,68013.0,0.07351482]
[1771639665393,0.07350998,68018.0,68013.0,0.07351482]
[1771639665789,0.07350931,68019.0,68013.0,0.07351482]
[1771639670554,0.07350931,68019.0,68014.0,0.07351425]
[1771639672553,0.07350931,68019.0,68014.0,0.07373425]
[1771639674413,0.07386962,68020.0,68014.0,0.07373425]
[1771639674618,0.07398675,68020.0,68014.0,0.07373425]
[1771639675517,0.07398675,68020.0,68008.0,0.23584118]
[1771639675721,0.07398675,68020.0,68008.0,0.27231295]
[1771639675921,0.07398675,68020.0,68013.0,0.07351468]
[1771639676546,0.07350888,68019.0,68013.0,0.07351468]
[1771639680274,0.07350888,68019.0,68013.0,0.07373468]
[1771639680908,0.00047713,68020.0,68008.0,0.03647177]
[1771639681121,0.07352076,68008.0,68004.0,0.00022]
[1771639681331,0.07352011,68009.0,68004.0,0.00022]
[1771639681544,0.07352134,68008.0,68004.0,0.00022]
[1771639682171,0.12274893,68019.0,68004.0,0.00022]
[1771639682172,0.07352032,68010.0,68004.0,0.00022]
[1771639682390,0.22065883,68044.0,68009.0,0.07351936]
[1771639682391,0.07351337,68015.0,68009.0,0.07351936]
[1771639682605,0.07351459,68014.0,68008.0,0.07351892]
[1771639687615,0.07351459,68014.0,68008.0,0.07373892]
[1771639687815,0.07351536,68013.0,68008.0,0.11021069]
[1771639688022,0.07351459,68014.0,68008.0,0.11021069]
[1771639689121,0.07351549,68013.0,68008.0,0.11021069]
[1771639689579,0.07351459,68014.0,68008.0,0.11021069]
[1771639690379,0.07351548,68013.0,68008.0,0.11021069]
[1771639690626,0.07351548,68013.0,68008.0,0.03669177]
[1771639692033,0.07351548,68013.0,68008.0,0.11021244]
[1771639692252,0.07351548,68013.0,68008.0,0.03669177]
[1771639695375,0.07351459,68014.0,68008.0,0.11021197]
[1771639695790,0.07351582,68013.0,68008.0,0.11021241]
[1771639695915,0.02374428,68013.0,68008.0,0.11021241]
[1771639696125,0.07351459,68014.0,68008.0,0.11021241]
[1771639696335,0.0002,68019.0,68008.0,0.00022]
[1771639696689,0.07351126,68017.0,68012.0,0.03647177]
[1771639696886,0.07351222,68016.0,68012.0,0.03647177]
[1771639702383,0.07371222,68016.0,68012.0,0.03647177]
[1771639704501,0.0002,68016.0,68012.0,0.03647177]
[1771639705447,0.07351126,68017.0,68012.0,0.03647177]
[1771639707372,0.07350935,68019.0,68013.0,0.03647177]
[1771639707549,0.07350935,68019.0,68014.0,0.03647177]
[1771639708269,0.07351159,68017.0,68014.0,0.03647177]
[1771639708478,0.07351229,68016.0,68011.0,0.07351693]
[1771639708675,0.07351229,68016.0,68011.0,0.1099887]
[1771639709599,0.07351159,68017.0,68011.0,0.1099887]
[1771639710787,0.0002,68016.0,68011.0,0.1099887]
[1771639714975,0.07371228,68016.0,68011.0,0.1099887]
[1771639715561,0.0002,68016.0,68011.0,0.1099887]
[1771639716532,0.07371212,68016.0,68011.0,0.1099887]
[1771639716989,0.07371212,68016.0,68011.0,0.1102087]
[1771639717487,0.0002,68016.0,68011.0,0.1102087]
[1771639719109,0.07371218,68016.0,68011.0,0.1102087]
[1771639721382,0.0002,68016.0,68011.0,0.1102087]
[1771639721582,0.0002,68016.0,68012.0,0.07351615]
[1771639721991,0.0002,68016.0,68012.0,0.10998792]
[1771639722996,0.0002,68016.0,68013.0,0.07351507]
[1771639723150,0.0002,68016.0,68012.0,0.03647177]
[1771639724375,0.0002,68016.0,68012.0,0.10998776]
[1771639725515,0.0002,68016.0,68012.0,0.03647177]
[1771639728581,0.07371217,68016.0,68012.0,0.03647177]
[1771639729609,0.07371217,68016.0,68011.0,0.00022]
[1771639730668,0.07351461,68014.0,68011.0,0.00022]
[1771639731916,0.07351332,68015.0,68011.0,0.00022]
[1771639732921,0.07351435,68014.0,68011.0,0.00022]
[1771639733213,0.07351332,68015.0,68011.0,0.00022]
[1771639736235,0.07351332,68015.0,68011.0,7.304e-05]
[1771639737169,0.0002,68016.0,68011.0,0.07359021]
[1771639738260,0.0002,68016.0,68011.0,7.304e-05]
[1771639738467,0.0002,68016.0,68011.0,0.07359008]
[1771639738840,0.0002,68016.0,68011.0,0.11006185]
[1771639739262,0.0002,68016.0,68012.0,0.07351642]
[1771639739485,0.0002,68016.0,68013.0,0.10998684]
[1771639739837,0.0002,68016.0,68013.0,0.03647177]
[1771639741916,0.0002,68016.0,68011.0,0.11006053]
[1771639742309,0.07371217,68016.0,68011.0,0.11006053]
[1771639742777,0.0002,68016.0,68011.0,0.11006053]
[1771639745184,0.07351404,68015.0,68008.0,0.07373999]
[1771639745348,0.07351404,68015.0,68009.0,0.07351949]
[1771639748302,0.07351404,68015.0,68010.0,0.07351846]
[1771639748749,0.0002,68016.0,68012.0,0.07351615]
[1771639748883,0.0002,68016.0,68012.0,0.07336918]
[1771639750873,0.0002,68016.0,68011.0,0.07351729]
[1771639757232,0.0002,68016.0,68011.0,0.07373729]
[1771639757550,0.07351048,68018.0,68013.0,0.03647177]
[1771639757957,0.07351286,68016.0,68011.0,0.00022]
[1771639758165,0.00027713,68020.0,68012.0,0.13415744]
[1771639758368,0.00027713,68020.0,68017.0,0.03647177]
[1771639758506,0.00027713,68020.0,68017.0,0.10998239]
[1771639759137,0.00027713,68020.0,68017.0,0.03647177]
[1771639759348,0.00027713,68020.0,68017.0,0.10998276]
[1771639760006,0.00027713,68020.0,68017.0,0.03647177]
[1771639760220,0.00127713,68020.0,68017.0,0.10998261]
[1771639760480,0.00027713,68020.0,68017.0,0.10998261]
[1771639760919,0.00027713,68020.0,68017.0,0.03647177]
[1771639761512,0.29398617,68031.0,68017.0,0.03647177]
[1771639761773,0.40412801,68054.0,68019.0,0.33244558]
[1771639761774,0.00016,68040.0,68019.0,0.33244558]
[1771639761920,0.00016,68040.0,68031.0,0.03647177]
[1771639762078,0.00016,68040.0,68032.0,0.07349413]
[1771639762079,0.07348763,68039.0,68032.0,0.07349413]
[1771639762281,0.07348763,68039.0,68031.0,0.10996605]
[1771639762282,0.0734885,68038.0,68031.0,0.10996605]
[1771639762500,0.0734885,68038.0,68020.0,0.00016]
[1771639762501,0.1304385,68039.0,68020.0,0.00016]
[1771639762858,0.1304385,68039.0,68025.0,0.07350199]
[1771639762859,0.07349614,68031.0,68025.0,0.07350199]
[1771639762980,0.29394929,68039.0,68020.0,0.00016]
[1771639762981,0.07349402,68033.0,68026.0,0.07350115]
[1771639763184,0.07349402,68033.0,68027.0,0.07349989]
[1771639763743,0.00016,68040.0,68036.0,0.07349049]
[1771639763892,0.001,68039.0,68036.0,0.03647177]
[1771639764286,0.001,68039.0,68035.0,0.07349109]
[1771639765246,0.00016,68040.0,68035.0,0.07349109]
[1771639765795,0.00016,68040.0,68034.0,0.03647177]
[1771639765993,0.00016,68040.0,68039.0,0.07348726]
[1771639766191,0.00016,68040.0,68038.0,0.0734879]
[1771639766831,0.00016,68040.0,68038.0,0.07334095]
[1771639767033,0.00016,68040.0,68039.0,0.001]
[1771639767449,0.00016,68040.0,68038.0,0.07334095]
[1771639769288,0.0002823,68050.0,68042.0,0.07348402]
[1771639769508,0.07347673,68049.0,68042.0,0.07348402]
[1771639769679,0.07333543,68049.0,68043.0,0.07348263]
[1771639771271,0.0002823,68050.0,68044.0,0.07348135]
[1771639771469,0.00016,68050.0,68044.0,0.07348135]
[1771639772510,0.07363568,68050.0,68044.0,0.07348135]
[1771639772729,0.07363568,68050.0,68043.0,0.07348263]
[1771639773483,0.07363568,68050.0,68044.0,0.07348181]
[1771639774153,0.00016,68050.0,68042.0,0.0001761]
[1771639774362,0.00016,68050.0,68046.0,0.03647177]
[1771639775722,0.29386879,68058.0,68042.0,0.29410852]
[1771639775723,0.0151669,68060.0,68042.0,0.0001761]
[1771639775920,0.07346677,68058.0,68052.0,0.07303172]
[1771639776128,0.07346618,68059.0,68053.0,0.07347154]
[1771639776662,0.0151669,68060.0,68054.0,0.07347049]
[1771639777838,0.08863164,68060.0,68054.0,0.07347049]
[1771639778059,0.07346576,68059.0,68053.0,0.07347034]
[1771639778262,0.07346808,68057.0,68051.0,0.07347361]
[1771639779409,0.07346752,68058.0,68052.0,0.07347318]
[1771639780050,0.07346785,68057.0,68052.0,0.07347318]
[1771639780249,0.06846752,68058.0,68052.0,0.07347318]
[1771639780892,0.08863197,68060.0,68054.0,0.07347018]
[1771639781657,0.08874919,68060.0,68054.0,0.07347018]
[1771639782036,0.08874919,68060.0,68054.0,0.07332324]
[1771639783356,0.07346567,68059.0,68054.0,0.07332324]
[1771639783556,0.07346754,68058.0,68049.0,0.29390431]
[1771639783754,0.07346837,68057.0,68052.0,0.03647177]
[1771639784168,0.07347035,68055.0,68052.0,0.03647177]
[1771639787071,0.0734694,68056.0,68052.0,0.03647177]
[1771639787271,0.07347005,68055.0,68052.0,0.18654077]
[1771639787950,0.0734694,68056.0,68052.0,0.18654077]
[1771639788338,0.07347033,68055.0,68052.0,0.18654077]
[1771639789845,0.0734694,68056.0,68043.0,0.03647177]
[1771639789846,0.0734689,68056.0,68043.0,0.03647177]
[1771639790000,0.07347329,68052.0,68047.0,0.07347811]
[1771639790413,0.07347321,68053.0,68048.0,0.03647177]
[1771639791601,0.07347321,68053.0,68052.0,0.00022]
[1771639791750,0.07347321,68053.0,68052.0,7.306e-05]
[1771639792071,0.07346971,68056.0,68052.0,7.306e-05]
[1771639792278,0.07347016,68055.0,68052.0,7.306e-05]
[1771639792752,0.07346955,68057.0,68053.0,0.03647177]
[1771639793107,0.07346914,68056.0,68053.0,0.03647177]
[1771639793430,0.07346955,68057.0,68053.0,0.03647177]
[1771639794207,0.0002,68058.0,68053.0,0.03647177]
[1771639794568,0.0002,68058.0,68055.0,0.10994138]
[1771639794767,0.0002,68058.0,68055.0,0.07346961]
[1771639794961,0.0002,68058.0,68056.0,0.03647177]
[1771639795469,0.01528412,68060.0,68055.0,0.07346961]
[1771639795693,0.07064408,68061.0,68056.0,0.03647177]
[1771639796011,0.0734649,68060.0,68056.0,0.03647177]
[1771639796156,0.07064408,68061.0,68056.0,0.03632483]
[1771639796364,0.07346162,68063.0,68056.0,0.07346861]
[1771639796561,0.29384152,68064.0,68057.0,0.0363983]
[1771639796807,0.07346377,68061.0,68057.0,0.0363983]
[1771639797397,0.07346471,68060.0,68057.0,0.0363983]
[1771639798059,0.00016,68070.0,68057.0,0.0363983]
[1771639798060,0.00016,68070.0,68061.0,0.0363983]
[1771639798273,0.00016,68070.0,68057.0,0.14032807]
[1771639798274,0.07356105,68069.0,68062.0,0.0363983]
[1771639798487,0.07345769,68067.0,68062.0,0.03625138]